{"text_format":"3","workbook":"xlsx","n_sheets":6,"sheets":["Регистър обаждания за продажби","Информация за връзка с клиента","Преди обаждане","Обаждане за първи път","Информация за продажби","Последващи действия"],"not_rendered":{"defined_names":14},"read":"whole","date_system":"1900"}

{"sheet":"Регистър обаждания за продажби","index":0,"n_rows":13,"n_cols":7,"rows_kept":13}
[null," Име на фирма"]
[null,"Регистър обаждания за продажби"]
[null,"Обаждане №","Клиент","Фирма","Дата","Час","Бележки"]
[null,1,"Цветан Гинчев",{"$f":"IF(РегистърОбажданияПродажби[[#This Row],[Клиент]]=\"\",\"\",IFERROR(VLOOKUP(РегистърОбажданияПродажби[[#This Row],[Клиент]],ИнфоВръзкаКлиент[],2,0),\"Not Found\"))","v":"Proseware, Inc."},{"$f":"TODAY()-5","v":"2016-12-02"},"08:30:00"]
[null,2,"Радослав Божилов",{"$f":"IF(РегистърОбажданияПродажби[[#This Row],[Клиент]]=\"\",\"\",IFERROR(VLOOKUP(РегистърОбажданияПродажби[[#This Row],[Клиент]],ИнфоВръзкаКлиент[],2,0),\"Not Found\"))","v":"Litware, Inc."},{"$f":"TODAY()-5","v":"2016-12-02"},"09:00:00"]
[null,3,"Бранимира Тасева",{"$f":"IF(РегистърОбажданияПродажби[[#This Row],[Клиент]]=\"\",\"\",IFERROR(VLOOKUP(РегистърОбажданияПродажби[[#This Row],[Клиент]],ИнфоВръзкаКлиент[],2,0),\"Not Found\"))","v":"Northwind Traders"},"2016-12-02","09:30:00"]
[null,4,"Любен Кацаров",{"$f":"IF(РегистърОбажданияПродажби[[#This Row],[Клиент]]=\"\",\"\",IFERROR(VLOOKUP(РегистърОбажданияПродажби[[#This Row],[Клиент]],ИнфоВръзкаКлиент[],2,0),\"Not Found\"))","v":"Lucerne Publishing"},"2016-12-02","10:00:00"]
[null,5,"Радомир Ангелов",{"$f":"IF(РегистърОбажданияПродажби[[#This Row],[Клиент]]=\"\",\"\",IFERROR(VLOOKUP(РегистърОбажданияПродажби[[#This Row],[Клиент]],ИнфоВръзкаКлиент[],2,0),\"Not Found\"))","v":"Margie's Travel"},"2016-12-02","10:30:00"]
[null,6,"Цветан Гинчев",{"$f":"IF(РегистърОбажданияПродажби[[#This Row],[Клиент]]=\"\",\"\",IFERROR(VLOOKUP(РегистърОбажданияПродажби[[#This Row],[Клиент]],ИнфоВръзкаКлиент[],2,0),\"Not Found\"))","v":"Proseware, Inc."},{"$f":"TODAY()-3","v":"2016-12-04"},"11:00:00"]
[null,7,"Радослав Божилов",{"$f":"IF(РегистърОбажданияПродажби[[#This Row],[Клиент]]=\"\",\"\",IFERROR(VLOOKUP(РегистърОбажданияПродажби[[#This Row],[Клиент]],ИнфоВръзкаКлиент[],2,0),\"Not Found\"))","v":"Litware, Inc."},{"$f":"TODAY()-3","v":"2016-12-04"},"11:30:00"]
[null,8,"Цветан Гинчев",{"$f":"IF(РегистърОбажданияПродажби[[#This Row],[Клиент]]=\"\",\"\",IFERROR(VLOOKUP(РегистърОбажданияПродажби[[#This Row],[Клиент]],ИнфоВръзкаКлиент[],2,0),\"Not Found\"))","v":"Proseware, Inc."},{"$f":"TODAY()-1","v":"2016-12-06"},"12:00:00"]
[null,9,"Радомир Ангелов",{"$f":"IF(РегистърОбажданияПродажби[[#This Row],[Клиент]]=\"\",\"\",IFERROR(VLOOKUP(РегистърОбажданияПродажби[[#This Row],[Клиент]],ИнфоВръзкаКлиент[],2,0),\"Not Found\"))","v":"Margie's Travel"},{"$f":"TODAY()-1","v":"2016-12-06"},"12:30:00"]
[null,10,"Радомир Ангелов",{"$f":"IF(РегистърОбажданияПродажби[[#This Row],[Клиент]]=\"\",\"\",IFERROR(VLOOKUP(РегистърОбажданияПродажби[[#This Row],[Клиент]],ИнфоВръзкаКлиент[],2,0),\"Not Found\"))","v":"Margie's Travel"},{"$f":"TODAY()","v":"2016-12-07"},"13:00:00"]

{"sheet":"Информация за връзка с клиента","index":1,"n_rows":8,"n_cols":8,"rows_kept":8}
[null,{"$f":"ИмеФирма","v":" Име на фирма"}]
[null,"Информация за връзка с клиента"]
[null,"Име на клиента","Име на фирма","Адрес","Град, област, пощ. код","Основен телефон","Допълнителен телефон","Имейл"]
[null,"Радослав Божилов","Litware, Inc.","Ул. Солунска 100","Нова Загора, обл. Сливен 8840","(541) 555-0135","(541) 555-0136","radb@litwareinc.com"]
[null,"Любен Кацаров","Lucerne Publishing","Бул. Витоша 20","Котел, обл. Сливен 8877","(425) 555-0198","(425) 555-0199","lyuben@lucernepublishing.com"]
[null,"Радомир Ангелов","Margie's Travel","Ул. Люляк 10","Жеравна, обл. Сливен 8999","(888) 555-0125","(888) 555-0126","rafomir@margiestravel.com"]
[null,"Бранимира Тасева","Northwind Traders","Бул. Дондуков 5","Айтос, обл. Бургас 9001","(541) 555-0175","(541) 555-0176","branimira@northwindtraders.com"]
[null,"Цветан Гинчев","Proseware, Inc.","Бул. Цар освободител 8","Ахтопол, обл. Бургас 8444","(509) 555-0150","(509) 555-0151","tsvetan@proseware.com"]

{"sheet":"Преди обаждане","index":2,"n_rows":13,"n_cols":3,"rows_kept":13}
[null,{"$f":"ИмеФирма","v":" Име на фирма"}]
[null,"Контролен списък за обаждане за продажба"]
[null,"Квадратче за отметка","Преди обаждане"]
[null,null,"Прегледайте хронологията на клиента"]
[null,null,"Прегледайте хронологията на работодателя на клиента"]
[null,null,"Прегледайте приоритетите и стратегията на продажби"]
[null,null,"Добавяне на елемент"]
[null,null,"Добавяне на елемент"]
[null,null,"Добавяне на елемент"]
[null,null,"Добавяне на елемент"]
[null,null,"Добавяне на елемент"]
[null,null,"Добавяне на елемент"]
[null,null,"Добавяне на елемент"]

{"sheet":"Обаждане за първи път","index":3,"n_rows":13,"n_cols":3,"rows_kept":13}
[null,{"$f":"ИмеФирма","v":" Име на фирма"}]
[null,"Контролен списък за обаждане за продажба"]
[null,"Квадратче за отметка","Обаждане за първи път"]
[null,null,"Директно обаждане на съответния човек"]
[null,null,"Ясно въведение"]
[null,null,"Добавяне на елемент"]
[null,null,"Добавяне на елемент"]
[null,null,"Добавяне на елемент"]
[null,null,"Добавяне на елемент"]
[null,null,"Добавяне на елемент"]
[null,null,"Добавяне на елемент"]
[null,null,"Добавяне на елемент"]
[null,null,"Добавяне на елемент"]

{"sheet":"Информация за продажби","index":4,"n_rows":13,"n_cols":3,"rows_kept":13}
[null,{"$f":"ИмеФирма","v":" Име на фирма"}]
[null,"Контролен списък за обаждане за продажба"]
[null,"Квадратче за отметка","Информация за продажби"]
[null,null,"Чисто и убедително въведение за продукт/услуга"]
[null,null,"Обхващане на всички основи"]
[null,null,"Споменаване на присъствието в интернет (например уеб сайт, социални мрежи)"]
[null,null,"Добавяне на елемент"]
[null,null,"Добавяне на елемент"]
[null,null,"Добавяне на елемент"]
[null,null,"Добавяне на елемент"]
[null,null,"Добавяне на елемент"]
[null,null,"Добавяне на елемент"]
[null,null,"Добавяне на елемент"]

{"sheet":"Последващи действия","index":5,"n_rows":13,"n_cols":3,"rows_kept":13}
[null,{"$f":"ИмеФирма","v":" Име на фирма"}]
[null,"Контролен списък за обаждане за продажба"]
[null,"Квадратче за отметка","Информация за последващи действия"]
[null,null,"Информация за връзка с клиента"]
[null,null,"Лична информация за клиента"]
[null,null,"Предпочитания на клиента"]
[null,null,"Пренасрочване на свързването?"]
[null,null,"Извършена продажба?"]
[null,null,"Добавяне на елемент"]
[null,null,"Добавяне на елемент"]
[null,null,"Добавяне на елемент"]
[null,null,"Добавяне на елемент"]
[null,null,"Добавяне на елемент"]